bitfinex-derivatives/quotes_ETHF0:USTF0_20241027
["timestamp","ask_amount","ask_price","bid_price","bid_amount"]
[1729995504646,1.71354525,2477.9,2477.8,2.63107803]
[1729995504848,1.71354525,2477.9,2477.7,1.46430839]
[1729995505043,1.72691525,2477.8,2477.7,1.46430839]
[1729995507446,1.72691525,2477.8,2477.7,2.09606665]
[1729995509843,2.54891525,2477.8,2477.7,2.09606665]
[1729995512849,2.54891525,2477.8,2477.7,4.18644299]
[1729995514254,2.54891525,2477.8,2477.7,4.18640855]
[1729995514451,2.54891525,2477.8,2477.7,3.55465029]
[1729995515054,2.54891525,2477.8,2477.7,1.98396745]
[1729995515545,2.54891525,2477.8,2477.7,3.55460989]
[1729995516059,2.54891525,2477.8,2477.7,3.55460847]
[1729995518159,2.54891525,2477.8,2477.7,1.98396745]
[1729995518356,2.54891525,2477.8,2477.7,3.55456401]
[1729995522459,2.54891525,2477.8,2477.7,4.18631106]
[1729995522854,2.54891525,2477.8,2477.7,2.6157145]
[1729995523159,2.54891525,2477.8,2477.7,4.18619773]
[1729995525358,3.2078,2478.3,2478.2,0.40398]
[1729995525570,2.13151525,2478.3,2478.2,0.40398]
[1729995526559,2.13151525,2478.3,2478.2,0.82218]
[1729995533565,2.53547525,2478.3,2478.2,0.82218]
[1729995535569,2.53547525,2478.3,2478.2,0.4182]
[1729995538171,2.53547525,2478.3,2478.2,0.82218]
[1729995538577,2.13151525,2478.3,2478.2,0.4182]
[1729995538786,2.13151525,2478.3,2478.2,0.82218]
[1729995538975,2.53547525,2478.3,2478.2,0.82218]
[1729995539169,2.53547525,2478.3,2478.2,0.4182]
[1729995540875,6.16671525,2478.3,2478.0,4.26759987]
[1729995541070,1.71350525,2478.1,2478.0,4.26759987]
[1729995541371,1.71350525,2478.1,2478.0,3.2078]
[1729995541576,0.40401,2478.0,2477.9,1.48353696]
[1729995541775,0.40401,2478.0,2477.9,3.05427427]
[1729995541776,1.71352525,2478.0,2477.9,3.05427427]
[1729995542581,1.71352525,2478.0,2477.9,0.4235]
[1729995546477,1.71352525,2478.0,2477.9,0.82753]
[1729995547183,1.30951525,2478.0,2477.9,0.82753]
[1729995549681,0.822,2478.2,2477.9,5.76821525]
[1729995549892,1.30951525,2478.1,2478.0,4.05941]
[1729995550484,1.30951525,2478.1,2478.0,6.69009538]
[1729995550786,1.30951525,2478.1,2478.0,11.25495823]
[1729995551787,1.30951525,2478.1,2478.0,9.66525842]
[1729995553289,0.822,2478.2,2478.0,12.22972028]
[1729995553290,1.30951525,2478.2,2478.0,12.22972028]
[1729995553482,0.822,2478.4,2478.1,3.15999337]
[1729995553684,1.22595,2478.4,2478.2,3.45800644]
[1729995553888,0.4234,2478.3,2478.2,1.88735802]
[1729995554095,0.4234,2478.3,2478.2,3.45756411]
[1729995554293,0.4234,2478.3,2478.2,1.88735802]
[1729995556000,1.73291525,2478.3,2478.2,1.88735802]
[1729995560101,1.30951525,2478.3,2478.2,1.88735802]
[1729995563509,1.30951525,2478.3,2478.2,3.45652644]
[1729995564212,1.30951525,2478.3,2478.2,1.88735802]
[1729995565715,1.30951525,2478.3,2478.2,0.82777]
[1729995571112,1.30951525,2478.3,2478.2,4.03557]
[1729995571519,1.30951525,2478.3,2478.2,0.82777]
[1729995572326,1.30951525,2478.3,2478.2,4.03557]
[1729995572713,1.30951525,2478.3,2478.2,5.09515802]
[1729995575015,1.30951525,2478.3,2478.2,1.88735802]
[1729995580222,1.30951525,2478.3,2478.2,0.82777]
[1729995582220,1.30951525,2478.3,2478.2,4.03557]
[1729995583024,1.30951525,2478.3,2478.2,0.82777]
[1729995583532,1.30951525,2478.3,2478.2,4.03557]
[1729995584729,1.30951525,2478.3,2478.2,0.82777]
[1729995585132,1.30951525,2478.3,2478.2,4.03557]
[1729995586129,1.30951525,2478.3,2478.2,0.82777]
[1729995586322,1.30951525,2478.3,2478.2,4.03557]
[1729995586923,1.30951525,2478.3,2478.2,0.82777]
[1729995588030,1.30951525,2478.3,2478.2,4.03557]
[1729995588227,1.30951525,2478.3,2478.2,6.6640518]
[1729995589028,1.30951525,2478.3,2478.2,6.66404526]
[1729995589233,0.81252,2478.6,2478.2,7.56959051]
[1729995589234,0.4086,2478.6,2478.2,7.56959051]
[1729995589431,0.4086,2478.6,2478.5,0.40393]
[1729995589737,1.71811525,2478.6,2478.5,0.40393]
[1729995593635,1.71811525,2478.6,2478.5,0.85103]
[1729995595348,2.12203525,2478.6,2478.4,3.61173]
[1729995595642,1.30951525,2478.5,2478.4,3.61173]
[1729995598539,1.30951525,2478.5,2478.4,4.03493]
[1729995598938,1.30951525,2478.5,2478.4,0.82713]
[1729995599140,1.30951525,2478.5,2478.4,4.03493]
[1729995603344,1.30951525,2478.5,2478.4,6.6652688]
[1729995604635,1.30951525,2478.5,2478.4,3.4574688]
[1729995604931,1.30951525,2478.5,2478.4,6.6652688]
[1729995605543,7.0573605,2478.5,2478.4,1.05958802]
[1729995605837,7.0653305,2478.5,2478.2,1.05958802]
[1729995606055,1.71347525,2478.3,2478.2,1.05958802]
[1729995606744,1.71347525,2478.3,2478.1,1.05958802]
[1729995606745,0.40398,2478.2,2478.1,1.05958802]
[1729995607042,0.40398,2478.2,2478.0,1.58934495]
[1729995607043,0.40399,2478.1,2478.0,1.05958802]
[1729995607243,2.14230525,2478.1,2478.0,1.05958802]
[1729995607434,0.40401,2478.0,2477.9,4.26738802]
[1729995607742,2.16022525,2478.0,2477.9,5.8384474]
[1729995608438,2.16022525,2478.0,2477.9,4.26738802]
[1729995610341,6.19542525,2478.0,2477.9,4.26738802]
[1729995610548,0.40403,2477.9,2477.8,1.05958802]
[1729995610844,1.71354525,2477.9,2477.8,1.05958802]
[1729995611245,1.30951525,2477.9,2477.8,1.46362802]
[1729995611734,1.30951525,2477.9,2477.8,4.67142802]
[1729995612537,1.30951525,2478.1,2477.8,11.18231971]
[1729995612747,1.30951525,2478.1,2478.0,0.40401]
[1729995613134,1.30951525,2478.1,2478.0,1.27861]
[1729995614349,1.30951525,2478.1,2478.0,4.48641]
[1729995621455,1.30951525,2478.1,2478.0,1.27861]
[1729995622353,1.30951525,2478.1,2478.0,4.48641]
[1729995622751,1.30951525,2478.1,2478.0,1.27861]
[1729995624761,1.75141525,2478.1,2478.0,1.27861]
[1729995629649,1.75141525,2478.1,2478.0,0.40401]
[1729995637864,1.30951525,2478.1,2478.0,0.40401]
[1729995641062,1.30951525,2478.2,2477.9,5.13168802]
[1729995641262,1.30951525,2478.2,2478.1,0.40398]
[1729995650368,1.30951525,2478.2,2478.1,1.46356802]
[1729995652970,1.30951525,2478.2,2478.1,3.03505433]
[1729995653468,1.30951525,2478.2,2478.1,3.0350301]
[1729995655387,1.30951525,2478.2,2478.1,0.40398]
[1729995657770,1.2485,2478.3,2478.2,0.40398]
[1729995658077,2.55801525,2478.3,2478.2,0.40398]
[1729995662584,2.55801525,2478.3,2478.2,1.46356802]
[1729995664271,2.55801525,2478.3,2478.2,1.05958802]
[1729995664577,2.55801525,2478.3,2478.1,1.05958802]
[1729995664578,0.40398,2478.2,2478.1,1.05958802]
[1729995664765,2.96197525,2478.3,2478.2,0.40398]
[1729995665376,2.55801525,2478.3,2478.2,0.40398]
[1729995666076,2.96197525,2478.3,2478.2,0.40398]
[1729995666279,2.96197525,2478.3,2478.1,1.46464892]
[1729995669076,0.40398,2478.2,2478.1,1.46464892]
[1729995669275,2.55801525,2478.3,2478.1,1.06065892]
[1729995669474,1.71349525,2478.2,2478.1,1.06065892]
[1729995670576,1.71349525,2478.2,2478.0,1.46465892]
[1729995670782,1.75921525,2478.1,2478.0,1.46465892]
[1729995672284,1.30951525,2478.1,2478.0,2.09636861]
[1729995673180,1.30951525,2478.1,2478.0,1.46465892]
[1729995673380,1.30951525,2478.1,2478.0,2.09635903]
[1729995677683,1.30951525,2478.1,2478.0,4.19686662]
[1729995678787,1.71350525,2478.1,2478.0,3.79286662]
[1729995678983,2.13151525,2478.1,2478.0,4.19688657]
[1729995679984,2.13151525,2478.1,2478.0,3.66836176]
[1729995680391,2.13151525,2478.1,2478.0,1.46483014]
[1729995680592,2.13151525,2478.1,2478.0,3.0367165]
[1729995680886,2.13151525,2478.1,2478.0,3.0367182]
[1729995681089,2.55701525,2478.1,2478.0,3.0367182]
[1729995681297,2.55701525,2478.1,2478.0,1.46483014]
[1729995683088,2.55701525,2478.1,2478.0,1.06082014]
[1729995683386,2.96100525,2478.1,2478.0,0.40401]
[1729995683584,6.99620525,2478.1,2477.9,1.46484014]
[1729995683782,2.12351525,2478.0,2477.9,1.46484014]
[1729995683977,2.12351525,2478.0,2477.9,3.03659676]
[1729995684182,2.12351525,2478.0,2477.9,1.46484014]
[1729995685680,2.12351525,2478.0,2477.9,0.40402]
[1729995690693,1.30951525,2478.0,2477.9,0.40402]
[1729995692786,1.30951525,2478.0,2477.9,1.46484014]
[1729995701706,1.71861525,2478.0,2477.9,1.46484014]
[1729995702303,1.71861525,2478.0,2477.9,0.40402]
[1729995711210,1.71861525,2478.0,2477.8,0.4178]
[1729995711411,0.40403,2477.9,2477.8,0.82184]
[1729995711705,2.53323525,2478.0,2477.8,0.82184]
[1729995711896,2.53323525,2478.0,2477.9,0.40403]
[1729995712806,2.12921525,2478.0,2477.9,0.40403]
[1729995713309,2.53322525,2478.0,2477.9,0.40403]
[1729995714404,2.53322525,2478.0,2477.8,0.4178]
[1729995714598,1.30951525,2477.9,2477.8,0.82184]
[1729995716699,1.30951525,2477.9,2477.8,1.88219674]
[1729995716904,1.30951525,2477.9,2477.8,3.45764353]
[1729995717203,1.30951525,2477.9,2477.8,3.45764926]
[1729995717408,1.30951525,2477.9,2477.8,0.82184]
[1729995719116,1.30951525,2477.9,2477.8,1.45358135]
[1729995719715,1.30951525,2477.9,2477.8,2.51393809]
[1729995720115,1.30951525,2477.9,2477.8,1.45358135]
[1729995720716,1.30951525,2477.9,2477.8,2.51393809]
[1729995722822,1.30951525,2477.9,2477.8,1.45358135]
[1729995723418,1.30951525,2477.9,2477.8,2.51393809]
[1729995724516,1.30951525,2477.9,2477.8,4.6201149]
[1729995724813,1.71354525,2477.9,2477.8,4.2160749]
[1729995725020,1.71354525,2477.9,2477.8,3.02957979]
[1729995725219,1.71354525,2477.9,2477.8,4.62014225]
[1729995725420,1.30951525,2477.9,2477.8,3.98837355]
[1729995725612,1.30951525,2477.9,2477.8,4.62012706]
[1729995725818,1.30951525,2477.9,2477.8,3.98837355]
[1729995726919,1.71354525,2477.9,2477.8,3.98837355]
[1729995727314,1.30951525,2477.9,2477.8,3.98837355]
[1729995728015,1.71354525,2477.9,2477.8,3.98837355]
[1729995728414,1.30951525,2477.9,2477.8,3.98837355]
[1729995728731,1.30951525,2477.9,2477.8,2.41237511]
[1729995728913,1.30951525,2477.9,2477.8,3.98872201]
[1729995732427,1.30951525,2477.9,2477.8,1.88279852]
[1729995732831,1.30951525,2477.9,2477.8,2.51455946]
[1729995733727,1.30951525,2477.9,2477.8,0.82184]
[1729995736818,1.71354525,2477.9,2477.8,0.82184]
[1729995737013,1.30951525,2477.9,2477.8,0.82184]
[1729995739629,1.30951525,2477.9,2477.8,3.45900157]
[1729995740726,1.30951525,2477.9,2477.8,3.45893424]
[1729995741228,1.71354525,2477.9,2477.8,3.45893424]
[1729995741526,1.71354525,2477.9,2477.8,2.39804305]
[1729995741727,1.30951525,2477.9,2477.8,3.45894274]
[1729995742116,1.30951525,2477.9,2477.8,2.39804305]
[1729995742624,1.30951525,2477.9,2477.8,3.45897115]
[1729995742928,1.30951525,2477.9,2477.8,2.39804305]
[1729995743422,1.71354525,2477.9,2477.8,4.62033062]
[1729995743629,1.71354525,2477.9,2477.8,3.45900451]
[1729995743932,1.71354525,2477.9,2477.8,3.05496451]
[1729995744135,1.71354525,2477.9,2477.8,3.45900451]
[1729995744926,3.0230605,2477.9,2477.8,2.63716451]
[1729995745143,7.0616305,2477.9,2477.6,1.06096146]
[1729995745330,1.71357525,2477.7,2477.6,1.06096146]
[1729995745626,1.71357525,2477.7,2477.6,0.4092]
[1729995752039,3.0230905,2477.7,2477.6,0.4092]
[1729995753434,0.40408,2477.6,2477.4,0.4417]
[1729995753633,1.30951525,2477.5,2477.4,0.8458]
[1729995753833,2.13051525,2477.5,2477.4,0.8458]
[1729995756536,2.13051525,2477.5,2477.4,0.84581]
[1729995756836,2.13051525,2477.5,2477.4,0.44036429]
[1729995756837,2.53460525,2477.5,2477.4,0.44036429]
[1729995757229,2.13051525,2477.5,2477.3,3.6143]
[1729995757446,1.71362525,2477.4,2477.3,3.6143]
[1729995760936,1.71362525,2477.4,2477.3,0.4065]
[1729995762641,1.71362525,2477.4,2477.2,4.03163]
[1729995762844,1.75771525,2477.3,2477.2,4.03163]
[1729995763232,1.75771525,2477.3,2477.2,0.82383]
[1729995763944,1.75771525,2477.3,2477.2,4.03163]
[1729995765644,1.75771525,2477.3,2477.2,0.82383]
[1729995765941,1.75771525,2477.3,2477.2,4.03163]
[1729995766145,1.75771525,2477.3,2477.2,0.82383]
[1729995766346,1.75771525,2477.3,2477.2,4.03163]
[1729995769065,1.75771525,2477.3,2477.2,0.82383]
[1729995769251,1.75771525,2477.3,2477.2,4.03163]
[1729995771054,1.75771525,2477.3,2477.2,0.82383]
[1729995771850,1.75771525,2477.3,2477.2,4.03163]
[1729995773648,1.75771525,2477.3,2477.2,0.82383]
[1729995773848,1.75771525,2477.3,2477.2,4.03163]
[1729995774349,1.75771525,2477.3,2477.2,0.82383]
[1729995774750,1.75771525,2477.3,2477.2,4.03163]
[1729995775860,1.75771525,2477.3,2477.2,3.6275]
[1729995776055,2.18511525,2477.3,2477.2,3.6275]
[1729995776256,2.18511525,2477.3,2477.2,4.03164]
[1729995778146,2.18511525,2477.3,2477.2,0.82384]
[1729995778351,2.18511525,2477.3,2477.2,4.03164]
[1729995779151,2.18511525,2477.3,2477.2,0.82384]
[1729995779359,2.58923525,2477.3,2477.2,0.4197]
[1729995779556,2.18511525,2477.3,2477.2,0.4197]
[1729995780460,2.18511525,2477.3,2477.2,0.82384]
[1729995782367,2.58923525,2477.3,2477.2,0.4197]
[1729995784759,2.18511525,2477.3,2477.2,0.4197]
[1729995784962,2.58923525,2477.3,2477.2,0.4197]
[1729995785479,2.18511525,2477.3,2477.2,0.4197]
[1729995785657,2.18511525,2477.3,2477.2,0.82384]
[1729995792375,2.18511525,2477.3,2477.2,1.88227883]
[1729995792671,3.00611525,2477.3,2477.2,0.82384]
[1729995793272,3.00611525,2477.3,2477.2,1.47813883]
[1729995793472,3.00611525,2477.3,2477.2,0.4197]
[1729995793771,3.41023525,2477.3,2477.2,0.4197]
[1729995794481,3.00611525,2477.3,2477.2,0.4197]
[1729995795862,3.00611525,2477.3,2477.2,1.88227883]
[1729995798470,3.41023525,2477.3,2477.2,1.05843883]
[1729995798672,3.00611525,2477.3,2477.1,1.48073883]
[1729995798874,0.40414,2477.2,2477.1,1.48073883]
[1729995799167,0.40414,2477.2,2477.1,1.99812506]
[1729995799677,1.71365525,2477.2,2477.1,3.05913478]
[1729995799976,1.71365525,2477.2,2477.1,1.48313973]
[1729995800771,1.71365525,2477.2,2477.1,0.4223]
[1729995801172,1.71365525,2477.2,2477.1,1.48313973]
[1729995801574,1.71365525,2477.2,2477.1,0.4223]
[1729995811972,1.30951525,2477.2,2477.0,1.46683973]
[1729995812177,1.71367525,2477.1,2477.0,0.406]
[1729995815076,6.6558305,2477.1,2476.8,1.48013973]
[1729995815280,1.30951525,2476.9,2476.8,2.81856824]
[1729995815481,1.30951525,2476.9,2476.8,2.80617889]
[1729995816385,1.30951525,2476.9,2476.8,4.39383713]
[1729995816590,1.30951525,2476.9,2476.8,3.8665237]
[1729995816888,1.30951525,2476.9,2476.8,2.80617889]
[1729995817487,1.30951525,2476.9,2476.8,3.86649307]
[1729995817687,1.30951525,2476.9,2476.8,2.80617889]
[1729995818080,1.30951525,2476.9,2476.8,3.86645691]
[1729995818280,1.30951525,2476.9,2476.8,3.86630301]
[1729995818481,1.30951525,2476.9,2476.8,2.80602499]
[1729995818685,1.30951525,2476.9,2476.8,3.86630045]
[1729995821194,1.30951525,2476.9,2476.8,2.29118546]
[1729995836404,1.30951525,2476.9,2476.8,3.86631849]
[1729995836607,1.30951525,2476.9,2476.8,2.80604303]
[1729995838308,1.30951525,2476.9,2476.8,1.86290316]
[1729995838507,1.30951525,2476.9,2476.8,1.86290305]
[1729995840208,3.2078,2477.4,2476.8,2.7682083]
[1729995840405,0.821,2477.3,2477.1,0.40415]
[1729995840613,1.22512,2477.3,2477.2,0.4498]
[1729995842005,2.53463525,2477.3,2477.2,0.4498]
[1729995849117,0.40416,2477.1,2477.0,1.06056524]
[1729995849318,1.71367525,2477.1,2477.0,1.06056524]
[1729995849613,1.71367525,2477.1,2477.0,1.46473524]
[1729995849821,1.71367525,2477.1,2477.0,1.06056524]
[1729995850415,1.71367525,2477.1,2477.0,1.46473524]
[1729995850823,1.30951525,2477.1,2477.0,1.46473524]
[1729995853918,1.71367525,2477.1,2477.0,1.46473524]
[1729995854119,1.71367525,2477.1,2477.0,1.06056524]
[1729995857030,1.71367525,2477.1,2476.9,1.48016524]
[1729995857031,0.40417,2477.0,2476.9,1.48016524]
[1729995857225,1.71368525,2477.0,2476.9,3.0568996]
[1729995859631,2.53468525,2477.0,2476.9,3.0568996]
[1729995860633,2.53468525,2477.0,2476.9,0.4196]
[1729995863330,2.53468525,2477.0,2476.9,0.82379]
[1729995863827,2.13051525,2477.0,2476.9,0.82379]
[1729995867331,2.53468525,2477.0,2476.9,0.82379]
[1729995867528,2.13051525,2477.0,2476.9,3.46099182]
[1729995868528,2.53468525,2477.0,2476.9,3.46099182]
[1729995870538,2.13051525,2477.0,2476.9,3.46097497]
[1729995870734,2.13051525,2477.0,2476.9,3.46169342]
[1729995871337,2.13051525,2477.0,2476.9,2.40040973]
[1729995871932,2.13051525,2477.0,2476.9,4.62005649]
[1729995872133,2.13051525,2477.0,2476.9,3.03239999]
[1729995872335,2.13051525,2477.0,2476.9,3.98806797]
[1729995872535,2.13051525,2477.0,2476.9,3.0323986]
[1729995872831,2.13051525,2477.0,2476.9,2.40040973]
[1729995873037,2.13051525,2477.0,2476.9,4.62005229]
[1729995873232,0.4294,2477.2,2476.9,5.52537754]
[1729995873439,0.821,2477.1,2477.0,3.47301069]
[1729995874437,2.13051525,2477.1,2477.0,3.47301069]
[1729995875036,2.13051525,2477.1,2477.0,3.47301925]
[1729995875537,2.13051525,2477.1,2477.0,1.89642767]
[1729995877244,1.30951525,2477.1,2477.0,1.89642767]
[1729995877436,2.13051525,2477.1,2477.0,1.89642767]
[1729995882836,2.13051525,2477.1,2477.0,3.47290444]
[1729995883644,2.13051525,2477.1,2477.0,1.89642767]
[1729995884747,2.13051525,2477.1,2477.0,3.47288991]
[1729995890651,2.13051525,2477.1,2477.0,0.83517]
[1729995893750,2.56961525,2477.1,2477.0,0.83517]
[1729995900960,2.56961525,2477.1,2477.0,2.41143557]
[1729995901359,2.56961525,2477.1,2477.0,3.47245674]
[1729995902653,2.56961525,2477.1,2477.0,1.89619117]
[1729995903562,2.56961525,2477.1,2477.0,1.46519117]
[1729995910962,2.56961525,2477.1,2477.0,0.40417]
[1729995913769,2.56961525,2477.1,2477.0,3.04179599]
[1729995916474,2.56961525,2477.1,2477.0,3.67375728]
[1729995916661,2.56961525,2477.1,2477.0,3.04179599]
[1729995916866,2.56961525,2477.1,2477.0,3.67375829]
[1729995917074,2.56961525,2477.1,2477.0,3.04179599]
[1729995917275,2.56961525,2477.1,2477.0,3.67376021]
[1729995917471,2.56961525,2477.1,2477.0,3.04210776]
[1729995917680,2.56961525,2477.1,2477.0,3.67407208]
[1729995917889,2.56961525,2477.1,2477.0,2.61305091]
[1729995918188,2.56961525,2477.1,2477.0,4.20458267]
[1729995918992,2.56961525,2477.1,2477.0,2.61305091]
[1729995919191,2.56961525,2477.1,2477.0,4.20458267]
[1729995922094,2.56961525,2477.1,2477.0,4.20473836]
[1729995923192,2.97377525,2477.1,2477.0,3.80056836]
[1729995923393,3.41527525,2477.1,2477.0,3.80056836]
[1729995923692,3.41527525,2477.1,2477.0,2.2090366]
[1729995924494,3.41527525,2477.1,2477.0,1.57707228]
[1729995926793,3.41527525,2477.1,2477.0,3.15413039]
[1729995927096,3.41527525,2477.1,2477.0,1.98122811]
[1729995927499,3.41527525,2477.1,2477.0,2.61319693]
[1729995927897,3.01111525,2477.1,2477.0,1.03613882]
[1729995928402,3.01111525,2477.1,2477.0,0.40417]
[1729995928696,3.01111525,2477.1,2477.0,1.46573396]
[1729995929091,3.01111525,2477.1,2477.0,0.40417]
[1729995929492,2.56961525,2477.1,2477.0,1.46573396]
[1729995935901,2.56961525,2477.1,2477.0,3.57276583]
[1729995938199,2.56861525,2477.1,2477.0,3.57276583]
[1729995938399,2.56861525,2477.1,2477.0,3.98586583]
[1729995940809,2.56861525,2477.1,2477.0,3.98589162]
[1729995942902,1.30951525,2477.1,2477.0,1.87885524]
[1729995943201,1.30951525,2477.5,2477.0,13.74856771]
[1729995943508,0.8426,2477.6,2477.4,0.40411]
[1729995943917,0.8426,2477.6,2477.4,0.81501]
[1729995944304,0.8426,2477.6,2477.4,1.25141]
[1729995944605,1.30951525,2477.5,2477.4,1.25141]
[1729995955512,1.30951525,2477.5,2477.4,0.40411]
[1729995955707,1.75851525,2477.5,2477.4,0.40411]
[1729995966712,0.40412,2477.3,2477.2,3.2078]
[1729995966911,1.71363525,2477.3,2477.2,3.2078]
[1729995967720,1.71363525,2477.3,2477.1,0.40415]
[1729995967909,2.60481525,2477.2,2477.1,0.40415]
[1729995969725,3.00896525,2477.2,2477.0,0.40417]
[1729995969917,1.30951525,2477.1,2477.0,0.40417]
[1729995971819,2.12951525,2477.1,2477.0,0.40417]
[1729995972025,2.53367525,2477.1,2476.9,4.26877764]
[1729995972327,1.71368525,2477.0,2476.9,4.26877764]
[1729995972820,1.71368525,2477.0,2476.9,4.67296764]
[1729995973725,0.40419,2476.9,2476.8,3.2078]
[1729995973921,2.12690525,2476.9,2476.8,3.2078]
[1729995975422,6.16450525,2476.9,2476.8,3.2078]
[1729995978828,6.16450525,2476.9,2476.7,0.40422]
[1729995979028,2.14621525,2476.8,2476.7,0.40422]
[1729995979532,6.18381525,2476.8,2476.7,0.40422]
[1729995980526,6.18381525,2476.8,2476.6,3.61203]
[1729995980732,1.30951525,2476.7,2476.6,3.61204]
[1729995981629,1.30951525,2476.7,2476.6,0.40424]
[1729995981835,1.30951525,2476.7,2476.6,3.61204]
[1729995982427,1.30951525,2476.7,2476.6,0.40424]
[1729995982827,1.30951525,2476.7,2476.6,3.61204]
[1729995983235,1.30951525,2476.7,2476.6,0.40424]
[1729995983527,1.30951525,2476.7,2476.6,3.61204]
[1729995984830,1.30951525,2476.7,2476.6,0.40424]
[1729995985026,1.30951525,2476.7,2476.6,3.61204]
[1729995987635,1.30951525,2476.7,2476.6,0.40424]
[1729995987837,1.30951525,2476.7,2476.6,3.61204]
[1729995988437,1.30951525,2476.7,2476.6,0.40424]
[1729995989535,1.30951525,2476.7,2476.6,3.61204]
[1729995989939,1.30951525,2476.7,2476.6,0.40424]
[1729995990633,1.30951525,2476.7,2476.6,3.61204]
[1729995991341,1.30951525,2476.7,2476.6,0.40424]
[1729995991543,1.30951525,2476.7,2476.4,0.8705]
[1729995991743,1.24092,2476.8,2476.6,3.61203]
[1729995991943,1.22422,2476.7,2476.6,3.61203]
[1729995992143,0.82,2476.7,2476.6,3.61203]
[1729995992745,1.22422,2476.7,2476.6,3.61203]
[1729995993646,1.22422,2476.7,2476.6,0.40423]
[1729995993948,1.22422,2476.7,2476.6,3.61203]
[1729995994245,1.22422,2476.7,2476.6,0.40423]
[1729995994447,1.22422,2476.7,2476.6,3.61203]
[1729995994642,2.53373525,2476.7,2476.6,3.61203]
[1729995995039,0.82,2476.7,2476.4,0.8705]
[1729995995238,0.82,2476.7,2476.6,0.40424]
[1729995996148,2.12951525,2476.7,2476.6,0.40424]
[1729995997048,2.53375525,2476.7,2476.5,0.40425]
[1729995997241,1.30951525,2476.6,2476.5,0.40425]
[1729995997937,2.12951525,2476.6,2476.5,0.40425]
[1729995999046,1.30951525,2476.6,2476.5,0.40425]
[1729995999241,2.12951525,2476.6,2476.5,0.40425]
[1729996000053,2.53376525,2476.6,2476.4,1.27476]
[1729996000241,1.30951525,2476.5,2476.4,1.27476]
[1729996002242,1.71377525,2476.5,2476.4,0.8705]
[1729996002748,1.71377525,2476.5,2476.4,1.27477]
[1729996002949,1.30951525,2476.5,2476.4,1.27477]
[1729996003747,1.71377525,2476.5,2476.4,1.27477]
[1729996005140,1.30951525,2476.5,2476.4,1.27477]
[1729996005340,1.71377525,2476.5,2476.4,1.27477]
[1729996005867,1.71377525,2476.5,2476.4,0.8705]
[1729996008151,2.14767525,2476.5,2476.4,0.8705]
[1729996011048,2.14767525,2476.5,2476.4,1.27477]
[1729996011558,1.74341525,2476.5,2476.4,1.27477]
[1729996012254,1.74341525,2476.5,2476.4,0.8705]
[1729996012454,1.74341525,2476.5,2476.4,1.27477]
[1729996012455,2.14767525,2476.5,2476.4,1.27477]
[1729996014754,1.74341525,2476.5,2476.4,1.27477]
[1729996016561,1.30951525,2476.5,2476.4,1.27477]
[1729996018458,1.30951525,2476.5,2476.4,2.33574764]
[1729996018960,0.84741,2476.8,2476.4,1.93147764]
[1729996019161,1.22422,2476.7,2476.6,0.40423]
[1729996019956,1.22422,2476.7,2476.5,0.40425]
[1729996020159,1.71375525,2476.6,2476.5,0.40425]
[1729996020361,1.30951525,2476.6,2476.5,0.40425]
[1729996020755,1.75421525,2476.6,2476.5,0.40425]
[1729996021349,2.57421525,2476.6,2476.5,0.40425]
[1729996025167,2.57421525,2476.6,2476.5,1.46522764]
[1729996030959,2.12951525,2476.6,2476.5,1.46522764]
[1729996035258,2.12951525,2476.6,2476.5,3.04168774]
[1729996035568,4.51731525,2477.0,2476.8,0.40419]
[1729996035569,3.61197,2477.0,2476.8,0.40419]
[1729996035774,3.2078,2477.0,2476.9,0.81179]
[1729996035970,4.0278,2477.0,2476.9,0.81179]
[1729996036268,4.84307,2477.0,2476.9,0.4076]
[1729996036672,1.63527,2477.0,2476.9,0.81179]
[1729996036873,1.2311,2477.0,2476.9,0.81179]
[1729996037357,3.8501305,2477.0,2476.9,0.81179]
[1729996038469,2.12951525,2477.0,2476.9,0.81179]
[1729996038671,2.12951525,2477.0,2476.9,2.28835079]
[1729996039371,2.12951525,2477.0,2476.9,1.22719]
[1729996039960,2.12951525,2477.0,2476.9,2.28835079]
[1729996040462,2.12951525,2477.0,2476.9,1.22719]
[1729996043068,1.30951525,2477.0,2476.9,1.22719]
[1729996043570,0.8691,2477.2,2476.9,8.0684]
[1729996043762,0.82,2477.3,2477.2,0.40414]
[1729996043968,2.12951525,2477.3,2477.2,3.61194]
[1729996044570,2.12951525,2477.3,2477.2,4.47014]
[1729996046973,2.12951525,2477.3,2477.2,1.26234]
[1729996047172,2.12951525,2477.3,2477.2,4.47014]
[1729996048668,2.12951525,2477.3,2477.2,1.26234]
[1729996048876,0.40415,2477.2,2477.0,0.40417]
[1729996049075,0.40415,2477.2,2476.8,3.612]
[1729996049076,0.40418,2477.0,2476.8,3.612]
[1729996049270,1.75241525,2476.9,2476.8,3.61201]
[1729996049478,2.19101525,2476.9,2476.8,3.61201]
[1729996050377,2.60901525,2476.9,2476.8,3.61201]
[1729996051473,2.60901525,2476.9,2476.8,0.40421]
[1729996056881,3.01320525,2476.9,2476.7,0.40422]
[1729996057187,1.30951525,2476.8,2476.7,0.40422]
[1729996059285,1.71372525,2476.8,2476.7,0.40422]
[1729996059686,1.30951525,2476.8,2476.7,0.40422]
[1729996059881,2.12951525,2476.8,2476.7,0.40422]
[1729996069785,1.30951525,2476.8,2476.7,0.40422]
[1729996069992,2.12951525,2476.9,2476.8,0.40421]
[1729996070596,2.12951525,2476.9,2476.8,0.83691]
[1729996073401,2.12951525,2476.9,2476.8,1.89807079]
[1729996073604,1.30951525,2476.9,2476.8,1.89807079]
[1729996076303,1.30951525,2476.9,2476.8,3.48341406]
[1729996077095,1.30951525,2476.9,2476.8,6.69121406]
[1729996077297,1.30951525,2476.9,2476.8,5.10587079]
[1729996079396,1.30951525,2476.9,2476.8,6.69183619]
[1729996079593,1.30951525,2476.9,2476.8,5.10587079]
[1729996080102,1.72991525,2476.9,2476.8,5.10587079]
[1729996082296,1.72991525,2476.9,2476.8,6.69238563]
[1729996082504,1.72991525,2476.9,2476.8,5.10587079]
[1729996082706,1.72991525,2476.9,2476.8,6.69239547]
[1729996083006,1.72991525,2476.9,2476.8,1.89807079]
[1729996086507,1.30951525,2476.9,2476.8,1.89807079]
[1729996086802,1.2467,2477.1,2476.9,0.40419]
[1729996086803,1.30951525,2477.0,2476.9,0.40419]
[1729996087007,1.30951525,2477.0,2476.9,0.85129]
[1729996087706,1.30951525,2477.0,2476.9,4.05909]
[1729996089403,1.30951525,2477.0,2476.9,0.85129]
[1729996090910,1.30951525,2477.0,2476.9,1.91131772]
[1729996092502,1.30951525,2477.0,2476.9,0.85129]
[1729996093408,1.30951525,2477.0,2476.9,1.4832443]